{"text_format":"3","workbook":"xlsx","n_sheets":1,"sheets":["Hoja1"],"not_rendered":{"images":1,"macros":1},"read":"whole","date_system":"1900"}

{"sheet":"Hoja1","index":0,"n_rows":46,"n_cols":249,"rows_kept":46,"merged":[[1,1,1,6],[2,3,2,4],[45,0,45,7],[45,8,45,15],[45,16,45,23],[45,24,45,31],[45,32,45,39],[45,40,45,47],[45,48,45,55],[45,56,45,63],[45,64,45,71],[45,72,45,79],[45,80,45,87],[45,88,45,95],[45,96,45,103],[45,104,45,111],[45,112,45,119],[45,120,45,127],[45,128,45,135],[45,136,45,143],[45,144,45,151],[45,152,45,159],[45,160,45,167],[45,168,45,175],[45,176,45,183],[45,184,45,191],[45,192,45,199],[45,200,45,207],[45,208,45,215],[45,216,45,223],[45,224,45,231],[45,232,45,239],[45,240,45,247],[45,248,45,255]]}
[]
[null,"Cuenta Pública 2022\nEstado Analítico del Activo\n (pesos)"]
[]
[null,"Entidad Municipal: (1)     TEXCALTITLAN     No. 4052",{"$nulls":4},"Del 1 de Enero al 31 de Diciembre de 2022 (2)"]
[]
[]
[null,"Concepto     (3)","Saldo Inicial   (4)                                         ","Cargos del Período (5)    ","Abonos del Período (6)      ","Saldo Final   (7)                     ","Variación del Período (8)              "]
[null,null,1,2,3,"4=(1+2-3)","(4-1)"]
[]
[null,"ACTIVO "]
[]
[null,"Activo Circulante",{"$f":"SUM(C13:C20)","v":{"v":218890.62,"d":"218,890.62"}},{"$f":"SUM(D13:D20)","v":{"v":1118758.58,"d":"1,118,758.58"}},{"$f":"SUM(E13:E20)","v":{"v":1022193.97,"d":"1,022,193.97"}},{"$f":"SUM(F13:F20)","v":{"v":315455.23000000004,"d":"315,455.23"}},{"$f":"F12-C12","v":{"v":96564.61000000004,"d":"96,564.61"}}]
[]
[null,"Efectivo y Equivalentes",{"v":216298.44,"d":"216,298.44"},{"v":1115497.32,"d":"1,115,497.32"},{"v":1022193.97,"d":"1,022,193.97"},{"$f":"C14+D14-E14","v":{"v":309601.79000000004,"d":"309,601.79"}},{"$f":"F14-C14","v":{"v":93303.35000000003,"d":"93,303.35"}}]
[null,"Derechos a Recibir Efectivo o Equivalentes",{"v":2592.18,"d":"2,592.18"},{"v":3261.26,"d":"3,261.26"},0,{"v":5853.4400000000005,"d":"5,853.44"},{"$f":"F15-C15","v":{"v":3261.2600000000007,"d":"3,261.26"}}]
[null,"Derechos a Recibir Bienes o Servicios",0,0,0,0,0]
[null,"Inventarios",0,0,0,0,0]
[null,"Almacenes",0,0,0,0,0]
[null,"Estimación por Pérdida o Deterioro de Activos Circulantes",0,0,0,0,0]
[null,"Otros Activos Circulantes",0,0,0,0,0]
[]
[]
[]
[]
[null,"Activo no Circulante",{"$f":"SUM(C26:C35)","v":{"v":-46650,"d":"-46,650.00"}},{"$f":"SUM(D26:D35)","v":0},{"$f":"SUM(E26:E35)","v":0},{"$f":"SUM(F26:F35)","v":{"v":-46650,"d":"-46,650.00"}},0]
[]
[null,"Inversiones Financieras a Largo Plazo",0,0,0,{"$f":"C27+D27-E27","v":0},0]
[null,"Derechos a Recibir Efectivo o Equivalentes a Largo Plazo",0,0,0,{"$f":"C28+D28-E28","v":0},0]
[null,"Bienes Inmuebles, Infraestructura y Construcciones en Proceso",0,0,0,0,0]
[null,"Bienes Muebles",{"v":-46650,"d":"-46,650.00"},0,0,{"v":-46650,"d":"-46,650.00"},0]
[null,"Activos Intangibles",0,0,0,0,0]
[null,"Depreciación, Deterioro y Amortización Acumulada de Bienes",0,0,0,{"$f":"C32+D32-E32","v":0},0]
[null,"Activos Diferidos",0,0,0,0,0]
[null,"Estimación por Pérdida o Deterioro de Activos no Circulantes",0,0,0,{"$f":"C34+D34-E34","v":0},0]
[null,"Otros Activos no Circulantes",0,0,0,0,0]
[]
[]
[]
[]
[]
[]
[null,"Total del Activo (9)",{"$f":"C12+C25","v":{"v":172240.62,"d":"172,240.62"}},{"$f":"D12+D25","v":{"v":1118758.58,"d":"1,118,758.58"}},{"$f":"E12+E25","v":{"v":1022193.97,"d":"1,022,193.97"}},{"$f":"F12+F25","v":{"v":268805.23000000004,"d":"268,805.23"}},{"$f":"G12+G25","v":{"v":96564.61000000004,"d":"96,564.61"}}]
[]
[]
[]
["\"Bajo protesta de decir verdad declaramos que los Estados Financieros y sus notas, son razonablemente correctos y son responsabilidad del emisor\"",{"$nulls":23},"\"Bajo protesta de decir verdad declaramos que los Estados Financieros y sus notas, son razonablemente correctos y son responsabilidad del emisor\"",{"$nulls":7},"\"Bajo protesta de decir verdad declaramos que los Estados Financieros y sus notas, son razonablemente correctos y son responsabilidad del emisor\"",{"$nulls":7},"\"Bajo protesta de decir verdad declaramos que los Estados Financieros y sus notas, son razonablemente correctos y son responsabilidad del emisor\"",{"$nulls":7},"\"Bajo protesta de decir verdad declaramos que los Estados Financieros y sus notas, son razonablemente correctos y son responsabilidad del emisor\"",{"$nulls":7},"\"Bajo protesta de decir verdad declaramos que los Estados Financieros y sus notas, son razonablemente correctos y son responsabilidad del emisor\"",{"$nulls":7},"\"Bajo protesta de decir verdad declaramos que los Estados Financieros y sus notas, son razonablemente correctos y son responsabilidad del emisor\"",{"$nulls":7},"\"Bajo protesta de decir verdad declaramos que los Estados Financieros y sus notas, son razonablemente correctos y son responsabilidad del emisor\"",{"$nulls":7},"\"Bajo protesta de decir verdad declaramos que los Estados Financieros y sus notas, son razonablemente correctos y son responsabilidad del emisor\"",{"$nulls":7},"\"Bajo protesta de decir verdad declaramos que los Estados Financieros y sus notas, son razonablemente correctos y son responsabilidad del emisor\"",{"$nulls":7},"\"Bajo protesta de decir verdad declaramos que los Estados Financieros y sus notas, son razonablemente correctos y son responsabilidad del emisor\"",{"$nulls":7},"\"Bajo protesta de decir verdad declaramos que los Estados Financieros y sus notas, son razonablemente correctos y son responsabilidad del emisor\"",{"$nulls":7},"\"Bajo protesta de decir verdad declaramos que los Estados Financieros y sus notas, son razonablemente correctos y son responsabilidad del emisor\"",{"$nulls":7},"\"Bajo protesta de decir verdad declaramos que los Estados Financieros y sus notas, son razonablemente correctos y son responsabilidad del emisor\"",{"$nulls":7},"\"Bajo protesta de decir verdad declaramos que los Estados Financieros y sus notas, son razonablemente correctos y son responsabilidad del emisor\"",{"$nulls":7},"\"Bajo protesta de decir verdad declaramos que los Estados Financieros y sus notas, son razonablemente correctos y son responsabilidad del emisor\"",{"$nulls":7},"\"Bajo protesta de decir verdad declaramos que los Estados Financieros y sus notas, son razonablemente correctos y son responsabilidad del emisor\"",{"$nulls":7},"\"Bajo protesta de decir verdad declaramos que los Estados Financieros y sus notas, son razonablemente correctos y son responsabilidad del emisor\"",{"$nulls":7},"\"Bajo protesta de decir verdad declaramos que los Estados Financieros y sus notas, son razonablemente correctos y son responsabilidad del emisor\"",{"$nulls":7},"\"Bajo protesta de decir verdad declaramos que los Estados Financieros y sus notas, son razonablemente correctos y son responsabilidad del emisor\"",{"$nulls":7},"\"Bajo protesta de decir verdad declaramos que los Estados Financieros y sus notas, son razonablemente correctos y son responsabilidad del emisor\"",{"$nulls":7},"\"Bajo protesta de decir verdad declaramos que los Estados Financieros y sus notas, son razonablemente correctos y son responsabilidad del emisor\"",{"$nulls":7},"\"Bajo protesta de decir verdad declaramos que los Estados Financieros y sus notas, son razonablemente correctos y son responsabilidad del emisor\"",{"$nulls":7},"\"Bajo protesta de decir verdad declaramos que los Estados Financieros y sus notas, son razonablemente correctos y son responsabilidad del emisor\"",{"$nulls":7},"\"Bajo protesta de decir verdad declaramos que los Estados Financieros y sus notas, son razonablemente correctos y son responsabilidad del emisor\"",{"$nulls":7},"\"Bajo protesta de decir verdad declaramos que los Estados Financieros y sus notas, son razonablemente correctos y son responsabilidad del emisor\"",{"$nulls":7},"\"Bajo protesta de decir verdad declaramos que los Estados Financieros y sus notas, son razonablemente correctos y son responsabilidad del emisor\"",{"$nulls":7},"\"Bajo protesta de decir verdad declaramos que los Estados Financieros y sus notas, son razonablemente correctos y son responsabilidad del emisor\"",{"$nulls":7},"\"Bajo protesta de decir verdad declaramos que los Estados Financieros y sus notas, son razonablemente correctos y son responsabilidad del emisor\"",{"$nulls":7},"\"Bajo protesta de decir verdad declaramos que los Estados Financieros y sus notas, son razonablemente correctos y son responsabilidad del emisor\""]